fUSD/lending_fUSD_20250417
["ID","MTS","AMOUNT","RATE_DAILY","PERIOD"]
[358317029,1744930239863,-506.49131522,0.00076151,120]
[358317030,1744930239873,-500.0,0.00076151,120]
[358317031,1744930239882,-500.0,0.00076151,120]
[358317032,1744930239891,-221.04426963,0.00076151,120]
[358317033,1744930239900,-500.0,0.00076151,120]
[358317034,1744930239910,-500.0,0.00076151,120]
[358317035,1744930239919,-515.87835491,0.00076151,120]
[358317036,1744930239928,-500.0,0.00076151,120]
[358317037,1744930239937,-500.0,0.00076151,120]
[358317038,1744930239947,-500.0,0.00076151,120]
[358317039,1744930239956,-500.0,0.00076151,120]
[358317040,1744930239965,-500.0,0.00076151,120]
[358317041,1744930239975,-500.0,0.00076151,120]
[358317042,1744930239984,-505.15,0.00076151,120]
[358317043,1744930239994,-500.0,0.00076151,120]
[358317044,1744930240003,-500.0,0.00076151,120]
[358317045,1744930240012,-500.0,0.00076151,120]
[358317046,1744930240022,-500.0,0.00076151,120]
[358317047,1744930240031,-500.0,0.00076151,120]
[358317048,1744930240040,-500.0,0.00076151,120]
[358317049,1744930240049,-500.0,0.00076151,120]
[358317050,1744930240058,-1927.8,0.00076153,2]
[358317051,1744930240067,-1363.91,0.00076177,2]
[358317052,1744930240076,-152.3798808,0.00076219,120]
[358317053,1744930240086,-1000.0,0.00076373,120]
[358317054,1744930240095,-2136.72,0.0007643,2]
[358317055,1744930240105,-152.3798808,0.00076795,120]
[358317056,1744930240115,-1000.0,0.00077,120]
[358317057,1744930240125,-1800.0,0.00077,78]
[358317058,1744930240134,-152.3798808,0.00077342,120]
[358317059,1744930240144,-551.31,0.00077367,2]
[358317060,1744930240153,-1000.0,0.000775,120]
[358317061,1744930240163,-157.71,0.00077524,120]
[358317062,1744930240172,-759.42,0.00077689,30]
[358317063,1744930240182,-16371.6,0.00077699,2]
[358317064,1744930240191,-1938.43,0.00077875,2]
[358317065,1744930240200,-152.3798808,0.00077918,120]
[358317066,1744930240211,-1000.0,0.00078,120]
[358317067,1744930240222,-2000.0,0.0007822,4]
[358317068,1744930240232,-152.3798808,0.00078466,120]
[358317069,1744930240242,-1000.0,0.000785,120]
[358317070,1744930240252,-3915.41,0.0007857,2]
[358317071,1744930240262,-707.4367097,0.00078669,50]
[358317072,1744930240271,-759.42,0.00078759,30]
[358317073,1744930240280,-5000.0,0.00078769,120]
[358317074,1744930240290,-811.798,0.00078869,120]
[358317075,1744930240300,-298.4239,0.000789,2]
[358317076,1744930240309,-859.8789,0.000789,2]
[358317077,1744930240320,-1574.00004716,0.00078912,6]
[358317078,1744930240329,-4722.00014148,0.0007899,6]
[358317079,1744930240339,-50000.0,0.00079,79]
[358317080,1744930240349,-1000.0,0.00079,120]
[358317081,1744930240359,-304.0,0.00079,120]
[358317082,1744930240368,-152.3798808,0.00079041,120]
[358317083,1744930240377,-163.71,0.00079074,120]
[358317084,1744930240388,-166.44,0.00079319,2]
[358317085,1744930240399,-500.0,0.00079452,120]
[358317087,1744930240408,-500.0,0.00079452,120]
[358317088,1744930240417,-152.3798808,0.00079589,120]
[358317090,1744930240426,-2139.1741,0.000796,14]
[358317092,1744930240437,-551.31,0.00079631,2]
[358317094,1744930240446,-1574.00004716,0.00079664,6]
[358317096,1744930240455,-3148.00009432,0.00079665,6]
[358317099,1744930240466,-203.69,0.00079669,2]
[358317101,1744930240475,-500.0,0.00079674,120]
[358317102,1744930240484,-500.0,0.00079674,120]
[358317103,1744930240494,-500.0,0.00079674,120]
[358317104,1744930240504,-389.68,0.00079674,120]
[358317105,1744930240513,-500.0,0.00079674,118]
[358317106,1744930240522,-472.81,0.00079674,118]
[358317107,1744930240531,-500.0,0.00079674,120]
[358317108,1744930240541,-473.47,0.00079674,120]
[358317109,1744930240550,-500.0,0.00079674,120]
[358317110,1744930240559,-500.0,0.00079674,120]
[358317111,1744930240569,-500.0,0.00079674,120]
[358317112,1744930240577,-500.0,0.00079674,120]
[358317113,1744930240587,-500.0,0.00079674,120]
[358317114,1744930240597,-500.0,0.00079674,120]
[358317115,1744930240606,-500.0,0.00079674,120]
[358317116,1744930240615,-500.0,0.00079674,120]
[358317117,1744930240624,-500.0,0.00079674,120]
[358317118,1744930240633,-880.85,0.00079674,120]
[358317119,1744930240642,-500.0,0.00079674,120]
[358317120,1744930240652,-573.22,0.00079674,120]
[358317121,1744930240661,-500.0,0.00079674,120]
[358317122,1744930240671,-500.0,0.00079674,120]
[358317123,1744930240680,-500.0,0.00079674,120]
[358317124,1744930240690,-500.0,0.00079674,120]
[358317125,1744930240699,-1379.15,0.00079674,120]
[358317126,1744930240708,-500.0,0.00079674,120]
[358317127,1744930240718,-624.76,0.00079674,120]
[358317128,1744930240727,-500.0,0.00079674,120]
[358317129,1744930240736,-500.0,0.00079674,120]
[358317130,1744930240745,-500.0,0.00079674,120]
[358317131,1744930240755,-500.0,0.00079674,120]
[358317132,1744930240764,-500.0,0.00079674,120]
[358317133,1744930240774,-563.49599874,0.00079674,120]
[358317134,1744930240783,-608.82,0.00079674,120]
[358317135,1744930240792,-608.54,0.00079674,120]
[358317136,1744930240801,-500.0,0.00079674,120]
[358317137,1744930240811,-500.0,0.00079674,120]
[358317138,1744930240819,-500.0,0.00079674,120]
[358317139,1744930240829,-500.0,0.00079674,120]
[358317140,1744930240838,-155.97,0.00079674,120]
[358317141,1744930240847,-500.0,0.00079674,120]
[358317142,1744930240857,-500.0,0.00079674,120]
[358317143,1744930240866,-500.0,0.00079674,120]
[358317144,1744930240875,-500.0,0.00079674,120]
[358317145,1744930240884,-488.96,0.00079674,120]
[358317146,1744930240894,-500.0,0.00079674,8]
[358317147,1744930240903,-502.18,0.00079674,8]
[358317148,1744930240912,-500.0,0.00079674,120]
[358317149,1744930240921,-168.04894038,0.00079674,120]
[358317150,1744930240930,-500.0,0.00079674,120]
[358317151,1744930240939,-500.0,0.00079674,120]
[358317152,1744930240949,-500.0,0.00079674,120]
[358317153,1744930240958,-542.55,0.00079674,120]
[358317154,1744930240967,-575.17,0.00079674,120]
[358317155,1744930240977,-500.0,0.00079674,120]
[358317156,1744930240986,-561.2,0.00079674,120]
[358317157,1744930240996,-500.0,0.00079674,120]
[358317158,1744930241005,-500.0,0.00079674,120]
[358317159,1744930241015,-500.0,0.00079674,120]
[358317160,1744930241024,-500.0,0.00079674,120]
[358317161,1744930241034,-25285.7353,0.00079675,2]
[358317162,1744930241044,-20332.0308,0.00079675,2]
[358317163,1744930241053,-150.0,0.00079739,60]
[358317164,1744930241063,-150.0,0.00079743,60]
[358317165,1744930241072,-150.0,0.00079748,60]
[358317166,1744930241082,-150.0,0.00079756,60]
[358317167,1744930241091,-150.0,0.00079762,60]
[358317168,1744930241101,-150.0,0.00079762,60]
[358317169,1744930241110,-1896.734,0.00079773,2]
[358317170,1744930241120,-547.2377,0.00079773,2]
[358317171,1744930241130,-150.0,0.00079773,60]
[358317172,1744930241139,-302.6248,0.00079776,2]
[358317173,1744930241149,-150.0,0.00079776,60]
[358317174,1744930241158,-150.0,0.00079778,60]
[358317175,1744930241167,-150.0,0.0007978,60]
[358317176,1744930241176,-150.0,0.0007979,60]
[358317177,1744930241185,-150.0,0.00079792,60]
[358317178,1744930241195,-150.0,0.00079795,60]
[358317179,1744930241204,-1015.77,0.000798,120]
[358317180,1744930241213,-150.0,0.00079802,60]
[358317181,1744930241222,-150.0,0.00079803,60]
[358317182,1744930241232,-150.0,0.00079806,60]
[358317183,1744930241242,-150.0,0.00079808,60]
[358317184,1744930241251,-244.41128664,0.00079813,60]
[358317185,1744930241260,-150.0,0.00079822,60]
[358317186,1744930241270,-150.0,0.00079833,60]
[358317187,1744930241279,-150.0,0.00079835,60]
[358317188,1744930241288,-150.0,0.00079844,60]
[358317189,1744930241298,-150.0,0.00079856,60]
[358317190,1744930241307,-150.0,0.00079857,60]
[358317191,1744930241316,-150.0,0.00079859,60]
[358317192,1744930241326,-1574.00004716,0.00079863,6]
[358317193,1744930241335,-150.0,0.00079865,60]
[358317194,1744930241344,-151.0,0.00079866,60]
[358317195,1744930241353,-150.0,0.00079869,60]
[358317196,1744930241363,-1661.0542,0.00079873,2]
[358317197,1744930241372,-991.1077,0.00079873,2]
[358317198,1744930241381,-856.7983,0.00079873,2]
[358317199,1744930241392,-157.2123,0.00079873,2]
[358317200,1744930241401,-6296.00018864,0.00079878,6]
[358317201,1744930241410,-150.0,0.00079878,60]
[358317202,1744930241420,-150.0,0.00079882,60]
[358317203,1744930241430,-150.0,0.00079885,60]
[358317204,1744930241439,-150.0,0.00079886,60]
[358317205,1744930241527,-165.87429171,0.00079886,60]
[358317206,1744930241536,-549.80961626,0.00079887,120]
[358317207,1744930241545,-500.0,0.00079887,120]
[358317208,1744930241554,-500.0,0.00079887,120]
[358317209,1744930241563,-500.0,0.00079887,120]
[358317210,1744930241572,-1000.0,0.00079888,30]
[358317211,1744930241581,-2128.4123,0.00079888,2]
[358317212,1744930241591,-9697.3601,0.00079888,2]
[358317213,1744930241599,-32528.0521,0.00079888,2]
[358317214,1744930241608,-1508.636,0.00079888,2]
[358317215,1744930241617,-35003.5122,0.00079888,2]
[358317216,1744930241627,-153.89998754,0.00079888,64]
[358317217,1744930241636,-150.0,0.00079893,60]
[358317218,1744930241645,-150.0,0.00079897,60]
[358317219,1744930241655,-163.52750082,0.000799,64]
[358317220,1744930241664,-150.0,0.000799,2]
[358317221,1744930241673,-150.0,0.000799,2]
[358317222,1744930241682,-290.21386397,0.000799,2]
[358317223,1744930241691,-2157.86462257,0.000799,2]
[358317224,1744930241700,-364.9361,0.000799,2]
[358317225,1744930241710,-353.6670393,0.000799,120]
[358317226,1744930241720,-150.0,0.000799,120]
[358317227,1744930241730,-150.0,0.00079924,60]
[358317228,1744930241740,-150.0,0.0007993,60]
[358317229,1744930241749,-150.0,0.00079932,60]
[358317230,1744930241758,-150.0,0.00079942,60]
[358317231,1744930241767,-150.0,0.00079943,60]
[358317232,1744930241777,-150.0,0.00079943,60]
[358317233,1744930241786,-150.0,0.00079951,60]
[358317234,1744930241795,-150.0,0.00079962,60]
[358317235,1744930241805,-150.0,0.00079971,60]
[358317236,1744930241814,-150.0,0.00079972,60]
[358317237,1744930241823,-500.0,0.00079973,15]
[358317238,1744930241833,-254.39693239,0.00079973,7]
[358317239,1744930241843,-500.0,0.00079973,15]
[358317240,1744930241852,-500.0,0.00079973,2]
[358317241,1744930241862,-500.0,0.00079973,15]
[358317242,1744930241872,-500.0,0.00079973,14]
[358317243,1744930241881,-502.16109153,0.00079973,15]
[358317244,1744930241891,-366.35636885,0.00079973,15]
[358317245,1744930241900,-502.65807078,0.00079973,15]
[358317246,1744930241910,-501.46586729,0.00079973,14]
[358317247,1744930241920,-7870.0002358,0.00079977,6]
[358317248,1744930241929,-9444.00028296,0.00079978,6]
[358317249,1744930241939,-150.0,0.00079978,60]
[358317250,1744930241949,-150.0,0.00079981,60]
[358317251,1744930241958,-500.0,0.00079987,2]
[358317252,1744930241968,-500.0,0.00079987,120]
[358317253,1744930241978,-500.0,0.00079987,120]
[358317254,1744930241987,-500.0,0.00079987,120]
[358317255,1744930241997,-500.0,0.00079987,120]
[358317256,1744930242007,-500.0,0.00079987,120]
[358317257,1744930242016,-500.0,0.00079987,120]
[358317258,1744930242026,-255.45,0.00079987,120]
[358317259,1744930242036,-500.0,0.00079987,120]
[358317260,1744930242046,-500.0,0.00079987,120]
[358317261,1744930242055,-500.0,0.00079987,120]
[358317262,1744930242065,-204.64,0.00079987,120]
[358317263,1744930242075,-500.0,0.00079987,120]
[358317264,1744930242085,-500.0,0.00079987,120]
[358317265,1744930242095,-508.58376208,0.00079987,120]
[358317266,1744930242104,-557.32555147,0.00079987,120]
[358317267,1744930242113,-520.99386634,0.00079987,30]
[358317268,1744930242123,-500.0,0.00079987,120]
[358317269,1744930242132,-255.1,0.00079987,120]
[358317270,1744930242141,-500.0,0.00079987,120]
[358317271,1744930242151,-500.0,0.00079987,120]
[358317272,1744930242161,-500.0,0.00079987,120]
[358317273,1744930242171,-506.67686059,0.00079987,120]
[358317274,1744930242180,-500.0,0.00079987,120]
[358317275,1744930242190,-382.55,0.00079987,120]
[358317276,1744930242199,-553.33,0.00079987,120]
[358317277,1744930242208,-534.35,0.00079987,120]
[358317278,1744930242217,-518.60092767,0.00079987,120]
[358317279,1744930242227,-500.0,0.00079987,120]
[358317280,1744930242237,-500.0,0.00079987,120]
[358317281,1744930242246,-500.0,0.00079987,120]
[358317282,1744930242255,-500.0,0.00079987,120]
[358317283,1744930242265,-500.0,0.00079987,120]
[358317284,1744930242274,-627.51,0.00079987,120]
[358317285,1744930242283,-500.0,0.00079987,120]
[358317286,1744930242292,-500.0,0.00079987,120]
[358317287,1744930242302,-565.11924953,0.00079987,120]
[358317288,1744930242311,-530.39729773,0.00079987,120]
[358317289,1744930242320,-536.54165226,0.00079987,120]
[358317290,1744930242329,-501.10837323,0.00079987,120]
[358317291,1744930242339,-500.0,0.00079987,120]
[358317292,1744930242348,-213.38,0.00079987,120]
[358317293,1744930242358,-500.0,0.00079987,120]
[358317294,1744930242367,-500.0,0.00079987,120]
[358317295,1744930242376,-500.0,0.00079987,120]
[358317296,1744930242388,-565.58085776,0.00079987,120]
[358317297,1744930242397,-529.50551893,0.00079987,120]
[358317298,1744930242407,-500.0,0.00079987,120]
[358317299,1744930242416,-168.47,0.00079987,120]
[358317300,1744930242425,-520.7221246,0.00079987,120]
[358317301,1744930242436,-500.0,0.00079987,120]
[358317302,1744930242445,-500.0,0.00079987,120]
[358317303,1744930242455,-500.0,0.00079987,120]
[358317304,1744930242464,-531.77337865,0.00079987,120]
[358317305,1744930242475,-500.0,0.00079987,120]
[358317306,1744930242484,-611.31,0.00079987,120]
[358317307,1744930242494,-500.0,0.00079987,120]
[358317308,1744930242503,-500.0,0.00079987,120]
[358317309,1744930242512,-500.0,0.00079987,120]
[358317310,1744930242522,-500.0,0.00079987,120]
[358317311,1744930242532,-500.0,0.00079987,120]
[358317312,1744930242542,-624.47,0.00079987,120]
[358317313,1744930242551,-624.47,0.00079987,120]
[358317314,1744930242561,-500.0,0.00079987,120]
[358317315,1744930242570,-500.0,0.00079987,120]
[358317316,1744930242580,-500.0,0.00079987,120]
[358317318,1744930242590,-500.0,0.00079987,120]
[358317319,1744930242599,-500.0,0.00079987,120]
[358317320,1744930242609,-500.0,0.00079987,120]
[358317321,1744930242618,-500.0,0.00079987,120]
[358317322,1744930242627,-500.0,0.00079987,120]
[358317323,1744930242636,-506.27655215,0.00079987,120]
[358317324,1744930242645,-500.0,0.00079987,120]
[358317325,1744930242655,-500.0,0.00079987,120]
[358317326,1744930242664,-531.34235792,0.00079987,120]
[358317327,1744930242673,-228.48,0.00079987,120]
[358317328,1744930242682,-500.0,0.00079987,120]
[358317329,1744930242692,-400.51392281,0.00079987,120]
[358317330,1744930242702,-235.31,0.00079987,120]
[358317331,1744930242711,-500.0,0.00079987,120]
[358317332,1744930242720,-521.59292342,0.00079987,120]
[358317333,1744930242730,-500.0,0.00079987,120]
[358317334,1744930242739,-500.0,0.00079987,120]
[358317335,1744930242749,-576.61,0.00079987,120]
[358317336,1744930242758,-500.0,0.00079987,120]
[358317337,1744930242767,-500.0,0.00079987,120]
[358317338,1744930242776,-500.0,0.00079987,120]
[358317339,1744930242785,-500.0,0.00079987,120]
[358317340,1744930242794,-500.0,0.00079987,120]
[358317341,1744930242805,-500.0,0.00079987,120]
[358317342,1744930242814,-500.0,0.00079987,120]
[358317343,1744930242823,-500.0,0.00079987,20]
[358317344,1744930242833,-500.0,0.00079987,120]
[358317345,1744930242842,-500.0,0.00079987,120]
[358317346,1744930242851,-500.0,0.00079987,120]
[358317347,1744930242862,-500.0,0.00079987,120]
[358317348,1744930242873,-554.36,0.00079987,120]
[358317349,1744930242882,-500.0,0.00079987,120]
[358317350,1744930242892,-508.99,0.00079987,120]
[358317351,1744930242900,-434.14527218,0.00079987,120]
[358317352,1744930242910,-500.0,0.00079987,120]
[358317353,1744930242920,-500.0,0.00079987,120]
[358317354,1744930242929,-500.0,0.00079987,120]
[358317355,1744930242937,-500.0,0.00079987,120]
[358317356,1744930242946,-500.0,0.00079987,120]
[358317357,1744930242955,-500.0,0.00079987,120]
[358317358,1744930242964,-500.0,0.00079987,120]
[358317359,1744930242974,-500.0,0.00079987,120]
[358317360,1744930242984,-500.0,0.00079987,120]
[358317361,1744930242994,-500.0,0.00079987,120]
[358317362,1744930243004,-582.55270015,0.00079987,120]
[358317363,1744930243013,-500.0,0.00079987,120]
[358317364,1744930243023,-500.0,0.00079987,120]
[358317365,1744930243032,-571.6,0.00079987,120]
[358317366,1744930243042,-570.18,0.00079987,120]
[358317367,1744930243051,-159.93948169,0.00079987,120]
[358317368,1744930243060,-500.0,0.00079987,120]
[358317369,1744930243070,-500.0,0.00079987,120]
[358317370,1744930243079,-489.6,0.00079987,120]
[358317371,1744930243089,-880.85,0.00079987,120]
[358317372,1744930243098,-500.0,0.00079987,120]
[358317374,1744930243107,-610.2,0.00079987,120]
[358317375,1744930243117,-500.0,0.00079987,120]
[358317376,1744930243126,-176.22,0.00079987,120]
[358317377,1744930243137,-500.0,0.00079987,120]
[358317378,1744930243149,-500.0,0.00079987,120]
[358317379,1744930243159,-500.0,0.00079987,120]
[358317381,1744930243168,-500.0,0.00079987,120]
[358317383,1744930243178,-1379.15,0.00079987,120]
[358317385,1744930243187,-500.0,0.00079987,120]
[358317387,1744930243197,-531.0,0.00079987,120]
[358317389,1744930243207,-568.46,0.00079987,120]
[358317391,1744930243216,-500.0,0.00079987,120]
[358317393,1744930243226,-500.0,0.00079987,120]
[358317395,1744930243235,-500.0,0.00079987,120]
[358317397,1744930243245,-500.0,0.00079987,120]
[358317399,1744930243254,-500.0,0.00079987,120]
[358317400,1744930243264,-500.0,0.00079987,120]
[358317401,1744930243273,-633.9,0.00079987,120]
[358317402,1744930243283,-622.19,0.00079987,120]
[358317403,1744930243291,-500.0,0.00079987,120]
[358317404,1744930243300,-500.0,0.00079987,120]
[358317405,1744930243309,-500.0,0.00079987,120]
[358317406,1744930243318,-500.0,0.00079987,120]
[358317407,1744930243327,-500.0,0.00079987,120]
[358317408,1744930243336,-479.12,0.00079987,120]
[358317409,1744930243345,-500.0,0.00079987,120]
[358317410,1744930243357,-500.0,0.00079987,120]
[358317411,1744930243366,-500.0,0.00079987,120]
[358317412,1744930243375,-500.0,0.00079987,120]
[358317413,1744930243385,-500.0,0.00079987,120]
[358317414,1744930243396,-500.0,0.00079987,120]
[358317415,1744930243405,-500.0,0.00079987,120]
[358317416,1744930243415,-500.0,0.00079987,120]
[358317417,1744930243424,-500.0,0.00079987,120]
[358317418,1744930243435,-500.0,0.00079987,120]
[358317419,1744930243444,-500.0,0.00079987,120]
[358317420,1744930243453,-150.0,0.00079988,60]
[358317421,1744930243465,-904.2652554,0.00079988,9]
[358317422,1744930243544,-41360.9953158,0.00079988,9]
[358317423,1744930243561,-1980.084239,0.00079988,9]
[358317424,1744930243571,-15237.1278097,0.00079988,9]
[358317425,1744930243580,-60897.1763808,0.00079988,9]
[358317426,1744930243590,-1574.00004716,0.00079988,6]
[358317427,1744930243599,-3148.00009432,0.00079989,6]
[358317428,1744930243608,-3148.00009432,0.0007999,6]
[358317429,1744930243617,-150.0,0.00079991,60]
[358317430,1744930243627,-150.0,0.00079995,60]
[358317431,1744930243637,-500.0,0.00079998,120]
[358317432,1744930243646,-270.52,0.00079998,120]
[358317433,1744930243656,-376.14,0.00079998,120]
[358317434,1744930243665,-591.28,0.00079998,120]
[358317435,1744930243674,-535.14,0.00079998,120]
[358317436,1744930243684,-624.47,0.00079998,120]
[358317437,1744930243693,-491.97,0.00079998,120]
[358317438,1744930243702,-500.0,0.00079998,120]
[358317439,1744930243711,-217.56,0.00079998,120]
[358317440,1744930243721,-500.0,0.00079998,120]
[358317441,1744930243730,-500.0,0.00079998,120]
[358317442,1744930243739,-500.0,0.00079998,120]
[358317443,1744930243749,-500.0,0.00079998,120]
[358317444,1744930243758,-515.28,0.00079998,120]
[358317445,1744930243767,-500.0,0.00079998,120]
[358317446,1744930243776,-880.85,0.00079998,120]
[358317447,1744930243785,-500.0,0.00079998,120]
[358317448,1744930243795,-321.22,0.00079998,120]
[358317449,1744930243804,-500.0,0.00079998,120]
[358317450,1744930243813,-500.0,0.00079998,120]
[358317451,1744930243823,-431.2,0.00079998,120]
[358317452,1744930243832,-500.0,0.00079998,120]
[358317453,1744930243842,-500.0,0.00079998,120]
[358317454,1744930243851,-300.0,0.00079999,60]
[358317455,1744930243860,-300.0,0.00079999,60]
[358317456,1744930243870,-300.0,0.00079999,60]
[358317457,1744930243879,-500.0,0.00079999,90]
[358317458,1744930243888,-236.58129059,0.00079999,120]
[358317459,1744930243898,-503.03568367,0.00079999,120]
[358317460,1744930243907,-512.9817563,0.00079999,120]
[358317461,1744930243916,-501.23613927,0.00079999,120]
[358317462,1744930243926,-522.15370302,0.00079999,120]
[358317463,1744930243935,-500.0,0.00079999,120]
[358317464,1744930243945,-500.0,0.00079999,120]
[358317465,1744930243955,-389.47,0.00079999,120]
[358317466,1744930243964,-624.47,0.00079999,120]
[358317467,1744930243973,-624.47,0.00079999,120]
[358317468,1744930243983,-624.47,0.00079999,120]
[358317469,1744930243992,-624.47,0.00079999,120]
[358317470,1744930244001,-624.47,0.00079999,120]
[358317471,1744930244011,-624.47,0.00079999,120]
[358317472,1744930244020,-624.47,0.00079999,120]
[358317473,1744930244029,-624.47,0.00079999,120]
[358317474,1744930244039,-500.0,0.00079999,120]
[358317475,1744930244048,-500.0,0.00079999,120]
[358317476,1744930244057,-500.0,0.00079999,120]
[358317477,1744930244067,-641.6,0.00079999,120]
[358317478,1744930244076,-283.03,0.00079999,120]
[358317479,1744930244086,-485.57,0.00079999,120]
[358317480,1744930244097,-500.0,0.00079999,120]
[358317481,1744930244107,-500.0,0.00079999,120]
[358317482,1744930244116,-500.0,0.00079999,120]
[358317483,1744930244126,-566.71,0.00079999,120]
[358317484,1744930244136,-288.27,0.00079999,120]
[358317485,1744930244145,-500.0,0.00079999,120]
[358317486,1744930244155,-500.0,0.00079999,120]
[358317487,1744930244165,-500.0,0.00079999,120]
[358317488,1744930244175,-500.0,0.00079999,120]
[358317489,1744930244185,-239.63,0.00079999,120]
[358317490,1744930244194,-500.0,0.00079999,120]
[358317491,1744930244203,-500.0,0.00079999,120]
[358317492,1744930244213,-500.0,0.00079999,120]
[358317493,1744930244222,-500.0,0.00079999,120]
[358317494,1744930244233,-500.0,0.00079999,120]
[358317495,1744930244242,-500.0,0.00079999,120]
[358317496,1744930244252,-500.0,0.00079999,120]
[358317497,1744930244262,-500.0,0.00079999,120]
[358317498,1744930244271,-880.85,0.00079999,120]
[358317499,1744930244281,-880.85,0.00079999,120]
[358317500,1744930244291,-880.85,0.00079999,120]
[358317501,1744930244300,-880.85,0.00079999,120]
[358317502,1744930244310,-880.85,0.00079999,120]
[358317503,1744930244321,-880.85,0.00079999,120]
[358317504,1744930244330,-880.85,0.00079999,120]
[358317505,1744930244340,-880.85,0.00079999,120]
[358317506,1744930244349,-500.0,0.00079999,120]
[358317507,1744930244358,-500.0,0.00079999,120]
[358317508,1744930244368,-500.0,0.00079999,120]
[358317510,1744930244377,-301.47,0.00079999,120]
[358317512,1744930244386,-500.0,0.00079999,120]
[358317514,1744930244399,-332.46,0.00079999,120]
[358317516,1744930244408,-1379.15,0.00079999,120]
[358317519,1744930244417,-1379.15,0.00079999,120]
[358317521,1744930244427,-1379.15,0.00079999,120]
[358317524,1744930244436,-1379.15,0.00079999,120]
[358317525,1744930244445,-1379.15,0.00079999,120]
[358317526,1744930244454,-1379.15,0.00079999,120]
[358317527,1744930244466,-1379.15,0.00079999,120]
[358317528,1744930244480,-1379.15,0.00079999,120]
[358317529,1744930244494,-1379.15,0.00079999,120]
[358317530,1744930244507,-500.0,0.00079999,120]
[358317531,1744930244518,-290.52,0.00079999,120]
[358317532,1744930244530,-500.0,0.00079999,120]
[358317535,1744930244544,-388.97,0.00079999,120]
[358317537,1744930244556,-231.61,0.00079999,120]
[358317539,1744930244569,-365.86,0.00079999,120]
[358317540,1744930244583,-500.0,0.00079999,120]
[358317541,1744930244595,-535.42,0.00079999,120]
[358317542,1744930244607,-500.0,0.00079999,120]
[358317543,1744930244617,-500.0,0.00079999,120]
[358317544,1744930244629,-548.1,0.00079999,120]
[358317545,1744930244641,-50000.0,0.0008,80]
[358317546,1744930244653,-895.91346721,0.0008,120]
[358317547,1744930244666,-342193.10121042,0.0008,120]
[358317548,1744930244688,-340569.66230341,0.0008,120]
[358317549,1744930244704,-444.07062839,0.0008,120]
[358317550,1744930244720,-450.0,0.0008,120]
[358317558,1744930246529,-1897.74363316,0.0005888,120]
[358317559,1744930246544,-591.39,0.0005888,120]
[358317560,1744930246556,-57510.86636684,0.0005888,120]
[358317561,1744930246566,-387.03,0.00072966,120]
[358317562,1744930246575,-540.09598391,0.00075443,120]
[358317563,1744930246585,-206.33,0.00075916,2]
[358317564,1744930246595,-250.0,0.00076086,120]
[358317565,1744930246605,-316343.16585778,0.0008,120]
[358317566,1744930246615,-754.0,0.0008,120]
[358317567,1744930246624,-505.0,0.0008,60]
[358317568,1744930246633,-1176.65128531,0.0008,2]